Workbook

Sheet Sheet3
A4: OPS Obrigações Mota-Engil SPGS 2024-2029 | G4: TANB | H4: 0.05 | J4: Data Simulação: | K4: =+TODAY() -> 2024-09-30
G5: Prazo | H5: 5 anos
B7: Montante a investir | F7: 2500 | H7: (Introduza o montante do investimento)
B9: TANB | F9: 0.05
B11: TIR Líquida de Impostos e Comissões | F11: =XIRR(BF57:DX57,BF45:DX45) -> 0.02084713876
B13: Juros Líquidos de Impostos e Comissões | F13: =+SUM(E57:R57,E72:Q72,E87:R87,E102:R102,E117:R117,E132:R132) -> 211.715 | AD13: Sim | AE13: Internet | AG13: Continente
AD14: Não | AE14: Balcão/Telefone | AG14: Madeira
B15: O Cliente já paga Comissão de Serviço de Bolsa ? | F15: 2 | H15: (Escolha a opção correta) | AG15: Açores
F16: 555
B17: O Cliente tem Notas de Lançamento digitais? | F17: 1 | H17: (Escolha a opção correta)
B19: Canal de Subscrição | F19: 1 | H19: (Escolha a opção correta)
B21: Regime Fiscal | F21: 1 | H21: (Escolha a opção correta)
B23: Rubricas | D23: Preçário | E23: Cash-Flows Totais
B24: Comissão Serviço Bolsa ** | D24: =+IF($F$15=1,0,IF($F$19=1,3,3)) -> 3 | E24: =+SUM(E46:R46,E61:R61,E76:R76,E91:R91,E106:R106,E121:R121) -> -183
B25: Comissão de Subscrição* | D25: =IF($F$19=1,5,IF(F7<2666.667,12,IF(F7<250000,0.45%*F7,0.325%*F7))) -> 5 | E25: =+SUM(E48:R48,E63:R63,E78:R78,E93:R93,E108:R108,E123:R123) -> -5
B26: Imposto do Selo | D26: 0.04 | E26: =+SUM(E49:R49,E64:Q64,E79:R79,E94:R94,E109:R109,E124:R124) -> -0.2
B27: Pagamento de Juros Bruto | D27: - | E27: =+SUM(E50:R50,E65:R65,E80:R80,E95:R95,E110:R110,E125:R125) -> 625
B28: IRS | D28: =+IF($F$21=1, 28%, IF($F$21=2, 28%, IF($F$21=3,19.6%,17.5%))) -> 0.28 | E28: =+SUM(E51:R51,E66:R66,E81:R81,E96:R96,E111:R111,E126:R126) -> -175
B29: Comissão Rendimentos ** | D29: 0.01 | E29: =+SUM(E52:R52,E67:Q67,E82:R82,E97:R97,E112:R112,E127:R127) -> -4.5
B30: Comissão Reembolso ** | D30: 0.002 | E30: =+SUM(E53:R53,E68:R68,E83:R83,E98:R98,E113:R113,E128:R128) -> -5
B31: Portes | D31: =+IF(OR($F$17=2,$F$21=2,$F$21=4),0.4,0) -> 0 | E31: =+SUM(E54:R54,E69:R69,E84:R84,E99:R99,E114:R114,E129:R129) -> 0
B32: Despesas Expediente** | D32: =+IF(OR($F$17=2,$F$21=2,$F$21=4),1.05,0) -> 0 | E32: =+SUM(E55:R55,E70:R70,E85:R85,E100:R100,E115:R115,E130:R130) -> 0
B33: IVA | D33: =+IF($F$21=1, 23%, IF($F$21=2, 22%, IF($F$21=3,16%,17.5%))) -> 0.23 | E33: =+SUM(E56:R56,E71:R71,E86:R86,E101:R101,E116:R116,E131:R131) -> -44.275
B34: TOTAL | E34: =+SUM(E24:E33) -> 208.025
B35: * Acresce IS
B36: ** Acresce IVA
B38: Disclamer: Os valores constantes da presente simulação correspondem à taxa interna de rentabilidade (TIR) para um investimento na OPS Mota-Engil SPGS 2024-2029, ao Preço de Emissão, assumindo que as mesmas são detidas por um investidor residente em território português, que serão mantidas até ao vencimento e reembolsadas na maturidade a 100% do valor nominal e que os cupões recebidos são reinvestidos a uma taxa de juro equivalente à TIR obtida. A Oferta é uma oferta pública de subscrição em Portugal e destina-se a investidores indeterminados, ou seja, ao público em geral, desde que sejam pessoas residentes ou com estabelecimento em Portugal. A Oferta não constitui uma oferta ou promoção de venda, compra ou subscrição de quaisquer títulos, particularmente no que respeita a qualquer pessoa a quem estejam legalmente vedadas essas operações, ou em qualquer jurisdição onde seja considerada ilegal a respetiva venda, compra ou subscrição das Obrigações, designadamente os Estados Unidos da América, a Área Económica Europeia (incluindo Reino Unido e Holanda), Austrália, Canadá, África do Sul e o Japão. Em particular as Obrigações não foram nem serão registadas ao abrigo do US Securities Act de 1933 ou de qualquer outra legislação sobre valores mobiliários aplicável nos Estados Unidos da América e não podem ser, direta ou indiretamente, promovidas ou vendidas nos Estados Unidos da América, ou em qualquer dos seus territórios e possessões ou áreas que se encontrem sujeitas a essa jurisdição, ou a uma “US Person” ou em seu benefício, conforme disposto na Rule 902(k), Regulation S do US Securities Act de 1933.
B42: DETALHES
E44: 2024 | BF44: 2024 | BJ44: 2025 | BX44: 2026 | CL44: 2027 | CZ44: 2028 | DN44: 2029
B45: Preçário | O45: =BF45 -> 2024-10-11 | P45: 2024-10-31 | Q45: 2024-11-29 | R45: =BI45 -> 2024-12-31 | BC45: Preçário | BF45: 2024-10-11 | BG45: 2024-10-31 | BH45: 2024-11-29 | BI45: 2024-12-31 | BJ45: 2025-01-31 | BK45: 2025-02-28 | BL45: 2025-03-31 | BM45: 2025-04-16 | BN45: 2025-04-30 | BO45: 2025-05-30 | BP45: 2025-06-30 | BQ45: 2025-07-31 | BR45: 2025-08-29 | BS45: 2025-09-30 | BT45: 2025-10-16 | BU45: 2025-10-31 | BV45: 2025-11-28 | BW45: 2025-12-31 | BX45: 2026-01-30 | BY45: 2026-02-27 | BZ45: 2026-03-31 | CA45: 2026-04-16 | CB45: 2026-04-30 | CC45: 2026-05-29 | CD45: 2026-06-30 | CE45: 2026-07-31 | CF45: 2026-08-31 | CG45: 2026-09-30 | CH45: 2026-10-16 | CI45: 2026-10-30 | CJ45: 2025-11-30 | CK45: 2025-12-31 | CL45: 2027-01-29 | CM45: 2027-02-26 | CN45: 2027-03-31 | CO45: 2027-04-16 | CP45: 2027-04-30 | CQ45: 2027-05-31 | CR45: 2027-06-30 | CS45: 2027-07-30 | CT45: 2027-08-31 | CU45: 2027-09-30 | CV45: 2027-10-18 | CW45: 2027-10-29 | CX45: 2027-11-30 | CY45: 2027-12-30 | CZ45: 2028-01-31 | DA45: 2028-02-29 | DB45: 2028-03-31 | DC45: 2028-04-17 | DD45: 2028-04-28 | DE45: 2028-05-31 | DF45: 2028-06-30 | DG45: 2028-07-31 | DH45: 2028-08-31 | DI45: 2028-09-29 | DJ45: 2028-10-16 | DK45: 2028-10-31 | DL45: 2028-11-30 | DM45: 2028-12-29 | DN45: 2029-01-31 | DO45: 2029-02-28 | DP45: 2029-03-30 | DQ45: 2029-04-16 | DR45: 2029-04-30 | DS45: 2029-05-31 | DT45: 2029-06-30 | DU45: 2029-07-31 | DV45: 2029-08-31 | DW45: 2029-09-29 | DX45: 2029-10-16
B46: Comissão Serviço Bolsa ** | D46: =+IF($F$15=1,0,IF($F$19=1,3,3)) -> 3 | O46: =-$D$46 -> -3 | P46: =-$D$46 -> -3 | Q46: =-$D$46 -> -3 | R46: =-$D$46 -> -3 | BC46: Comissão Guarda Títulos ** | BE46: =+IF($F$15=1,0,IF($F$19=1,3,3)) -> 3 | BG46: =-$D$46 -> -3 | BH46: =-$D$46 -> -3 | BI46: -3 | BJ46: -3 | BK46: -3 | BL46: -3 | BN46: =-$D$46 -> -3 | BO46: -3 | BP46: -3 | BQ46: -3 | BR46: -3 | BS46: -3 | BU46: =-$D$46 -> -3 | BV46: -3 | BW46: -3 | BX46: -3 | BY46: -3 | BZ46: -3 | CB46: -3 | CC46: -3 | CD46: -3 | CE46: -3 | CF46: -3 | CG46: -3 | CI46: -3 | CJ46: -3 | CK46: -3 | CL46: -3 | CM46: -3 | CN46: -3 | CP46: -3 | CQ46: -3 | CR46: -3 | CS46: -3 | CT46: -3 | CU46: -3 | CW46: -3 | CX46: -3 | CY46: -3 | CZ46: -3 | DA46: -3 | DB46: -3 | DD46: -3 | DE46: -3 | DF46: -3 | DG46: -3 | DH46: -3 | DI46: -3 | DK46: -3 | DL46: -3 | DM46: -3 | DN46: =-$D$46 -> -3 | DO46: -3 | DP46: -3 | DR46: =-$D$46 -> -3 | DS46: -3 | DT46: -3 | DU46: -3 | DV46: -3 | DW46: -3
B47: Investimento | D47: - | O47: =-$F$7 -> -2500 | BC47: Investimento | BE47: - | BF47: =-F7 -> -2500 | DX47: =F7 -> 2500
B48: Comissão de Subscrição** | D48: =D25 -> 5 | O48: =-$D$48 -> -5 | BC48: Comissão de Subscrição** | BE48: =BF25 -> 0 | BF48: =-D48 -> -5
B49: Imposto do Selo | D49: 0.04 | O49: =+$O$48*$D$49 -> -0.2 | BC49: Imposto do Selo | BE49: 0.04 | BF49: =+BF48*$D$49 -> -0.2
B50: Pagamento de Juros Bruto | D50: - | BC50: Pagamento de Juros Bruto | BE50: - | BM50: =+$F$7*$F$9*((6*30)/360) -> 62.5 | BT50: =+$F$7*$F$9*((6*30)/360) -> 62.5 | CA50: =+$F$7*$F$9*((6*30)/360) -> 62.5 | CH50: =+$F$7*$F$9*((6*30)/360) -> 62.5 | CO50: =+$F$7*$F$9*((6*30)/360) -> 62.5 | CV50: =+$F$7*$F$9*((6*30)/360) -> 62.5 | DC50: =+$F$7*$F$9*((6*30)/360) -> 62.5 | DJ50: =+$F$7*$F$9*((6*30)/360) -> 62.5 | DQ50: =+$F$7*$F$9*((6*30)/360) -> 62.5 | DX50: =+$F$7*$F$9*((6*30)/360) -> 62.5
B51: IRS | D51: =+IF($F$21=1, 28%, IF($F$21=2, 28%, IF($F$21=3,19.6%,17.5%))) -> 0.28 | BC51: IRS | BE51: =+IF($F$21=1, 28%, IF($F$21=2, 28%, IF($F$21=3,19.6%,17.5%))) -> 0.28 | BM51: =+-BM50*$D$51 -> -17.5 | BT51: =+-BT50*$D$51 -> -17.5 | CA51: =+-CA50*$D$51 -> -17.5 | CH51: =+-CH50*$D$51 -> -17.5 | CO51: =+-CO50*$D$51 -> -17.5 | CV51: =+-CV50*$D$51 -> -17.5 | DC51: =+-DC50*$D$51 -> -17.5 | DJ51: =+-DJ50*$D$51 -> -17.5 | DQ51: =+-DQ50*$D$51 -> -17.5 | DX51: =+-DX50*$D$51 -> -17.5
B52: Comissão Rendimentos ** | D52: 0.01 | BC52: Comissão Rendimentos ** | BE52: 0.01 | BM52: =-((BM50+BM51)*$D$52) -> -0.45 | BT52: =-((BT50+BT51)*$D$52) -> -0.45 | CA52: =-((CA50+CA51)*$D$52) -> -0.45 | CH52: =-((CH50+CH51)*$D$52) -> -0.45 | CO52: =-((CO50+CO51)*$D$52) -> -0.45 | CV52: =-((CV50+CV51)*$D$52) -> -0.45 | DC52: =-((DC50+DC51)*$D$52) -> -0.45 | DJ52: =-((DJ50+DJ51)*$D$52) -> -0.45 | DQ52: =-((DQ50+DQ51)*$D$52) -> -0.45 | DX52: =-((DX50+DX51)*$D$52) -> -0.45
B53: Comissão Reembolso ** | D53: 0.002 | BC53: Comissão Reembolso ** | BE53: 0.002 | DX53: =-$D$53*$F$7 -> -5
B54: Portes | D54: =+IF($F$17=1,0,0.4) -> 0 | O54: =+IF($F$17=1,0,IF(AND($F$15=2,OR($F$21=2,$F$21=4)),-$D$54,IF(O$46="",-$D$54,0))) -> 0 | BC54: Portes | BE54: =+IF($F$17=1,0,0.4) -> 0 | BF54: =+IF($F$17=1,0,IF(AND($F$15=2,OR($F$21=2,$F$21=4)),-$D$54,IF(BF$46="",-$D$54,0))) -> 0 | BM54: =+IF($F$17=1,0,IF(AND($F$15=2,OR($F$21=2,$F$21=4)),-$D$54,IF(BM$46="",-$D$54,0))) -> 0 | BT54: =+IF($F$17=1,0,IF(AND($F$15=2,OR($F$21=2,$F$21=4)),-$D$54,IF(BT$46="",-$D$54,0))) -> 0 | CA54: =+IF($F$17=1,0,IF(AND($F$15=2,OR($F$21=2,$F$21=4)),-$D$54,IF(CA$46="",-$D$54,0))) -> 0 | CH54: =+IF($F$17=1,0,IF(AND($F$15=2,OR($F$21=2,$F$21=4)),-$D$54,IF(CH$46="",-$D$54,0))) -> 0 | CO54: =+IF($F$17=1,0,IF(AND($F$15=2,OR($F$21=2,$F$21=4)),-$D$54,IF(CO$46="",-$D$54,0))) -> 0 | CV54: =+IF($F$17=1,0,IF(AND($F$15=2,OR($F$21=2,$F$21=4)),-$D$54,IF(CV$46="",-$D$54,0))) -> 0 | DC54: =+IF($F$17=1,0,IF(AND($F$15=2,OR($F$21=2,$F$21=4)),-$D$54,IF(DC$46="",-$D$54,0))) -> 0 | DJ54: =+IF($F$17=1,0,IF(AND($F$15=2,OR($F$21=2,$F$21=4)),-$D$54,IF(DJ$46="",-$D$54,0))) -> 0 | DQ54: =+IF($F$17=1,0,IF(AND($F$15=2,OR($F$21=2,$F$21=4)),-$D$54,IF(DQ$46="",-$D$54,0))) -> 0 | DX54: =+IF($F$17=1,0,IF(AND($F$15=2,OR($F$21=2,$F$21=4)),-$D$54,IF(DR$91="",-$D$54,0)))*2 -> 0
B55: Despesas Expediente** | D55: =+IF($F$17=1,0,1.05) -> 0 | O55: =+IF($F$17=1,0,IF(AND($F$15=2,OR($F$21=2,$F$21=4)),-$D$55,IF(O$46="",-$D$55,0))) -> 0 | BC55: Despesas Expediente** | BE55: =+IF($F$17=1,0,1.05) -> 0 | BF55: =+IF($F$17=1,0,IF(AND($F$15=2,OR($F$21=2,$F$21=4)),-$D$55,IF(BF$46="",-$D$55,0))) -> 0 | BM55: =+IF($F$17=1,0,IF(AND($F$15=2,OR($F$21=2,$F$21=4)),-$D$55,IF(BM$46="",-$D$55,0))) -> 0 | BT55: =+IF($F$17=1,0,IF(AND($F$15=2,OR($F$21=2,$F$21=4)),-$D$55,IF(BT$46="",-$D$55,0))) -> 0 | CA55: =+IF($F$17=1,0,IF(AND($F$15=2,OR($F$21=2,$F$21=4)),-$D$55,IF(CA$46="",-$D$55,0))) -> 0 | CH55: =+IF($F$17=1,0,IF(AND($F$15=2,OR($F$21=2,$F$21=4)),-$D$55,IF(CH$46="",-$D$55,0))) -> 0 | CO55: =+IF($F$17=1,0,IF(AND($F$15=2,OR($F$21=2,$F$21=4)),-$D$55,IF(CO$46="",-$D$55,0))) -> 0 | CV55: =+IF($F$17=1,0,IF(AND($F$15=2,OR($F$21=2,$F$21=4)),-$D$55,IF(CV$46="",-$D$55,0))) -> 0 | DC55: =+IF($F$17=1,0,IF(AND($F$15=2,OR($F$21=2,$F$21=4)),-$D$55,IF(DC$46="",-$D$55,0))) -> 0 | DJ55: =+IF($F$17=1,0,IF(AND($F$15=2,OR($F$21=2,$F$21=4)),-$D$55,IF(DJ$46="",-$D$55,0))) -> 0 | DQ55: =+IF($F$17=1,0,IF(AND($F$15=2,OR($F$21=2,$F$21=4)),-$D$55,IF(DQ$46="",-$D$55,0))) -> 0 | DX55: =+IF($F$17=1,0,IF(AND($F$15=2,OR($F$21=2,$F$21=4)),-$D$55,IF(DR$91="",-$D$55,0)))*2 -> 0
B56: IVA | D56: =+IF($F$21=1, 23%, IF($F$21=2, 22%, IF($F$21=3,16%,17.5%))) -> 0.23 | O56: =+(O46+O52+O53+O55)*$D$56 -> -0.69 | P56: =+(P46+P52+P53+P55)*$D$56 -> -0.69 | Q56: =+(Q46+Q52+Q53+Q55)*$D$56 -> -0.69 | R56: =+(R46+R52+R53+R55)*$D$56 -> -0.69 | BC56: IVA | BE56: =+IF($F$21=1, 23%, IF($F$21=2, 22%, IF($F$21=3,16%,17.5%))) -> 0.23 | BF56: =+(BF46+BF52+BF53+BF55)*$D$56 -> 0 | BG56: =+(BG46+BG52+BG53+BG55)*$D$56 -> -0.69 | BH56: -0.69 | BI56: -0.69 | BJ56: -0.69 | BK56: -0.69 | BL56: =+(BL46+BL52+BL53+BL55)*$D$56 -> -0.69 | BM56: =+(BM46+BM52+BM53+BM55)*$D$56 -> -0.1035 | BN56: =+(BN46+BN52+BN53+BN55)*$D$56 -> -0.69 | BO56: =+(BO46+BO52+BO53+BO55)*$D$56 -> -0.69 | BP56: -0.69 | BQ56: -0.69 | BR56: -0.69 | BS56: -0.69 | BT56: =+(BT46+BT52+BT53+BT55)*$D$56 -> -0.1035 | BU56: -0.69 | BV56: =+(BV46+BV52+BV53+BV55)*$D$56 -> -0.69 | BW56: -0.69 | BX56: =+(BX46+BX52+BX53+BX55)*$D$56 -> -0.69 | BY56: -0.69 | BZ56: -0.69 | CA56: =+(CA46+CA52+CA53+CA55)*$D$56 -> -0.1035 | CB56: =+(CB46+CB52+CB53+CB55)*$D$56 -> -0.69 | CC56: =+(CC46+CC52+CC53+CC55)*$D$56 -> -0.69 | CD56: -0.69 | CE56: -0.69 | CF56: -0.69 | CG56: -0.69 | CH56: =+(CH46+CH52+CH53+CH55)*$D$56 -> -0.1035 | CI56: =+(CI46+CI52+CI53+CI55)*$D$56 -> -0.69 | CJ56: =+(CJ46+CJ52+CJ53+CJ55)*$D$56 -> -0.69 | CK56: -0.69 | CL56: -0.69 | CM56: -0.69 | CN56: -0.69 | CO56: =+(CO46+CO52+CO53+CO55)*$D$56 -> -0.1035 | CP56: =+(CP46+CP52+CP53+CP55)*$D$56 -> -0.69 | CQ56: =+(CQ46+CQ52+CQ53+CQ55)*$D$56 -> -0.69 | CR56: -0.69 | CS56: -0.69 | CT56: -0.69 | CU56: -0.69 | CV56: =+(CV46+CV52+CV53+CV55)*$D$56 -> -0.1035 | CW56: =+(CW46+CW52+CW53+CW55)*$D$56 -> -0.69 | CX56: =+(CX46+CX52+CX53+CX55)*$D$56 -> -0.69 | CY56: -0.69 | CZ56: -0.69 | DA56: -0.69 | DB56: -0.69 | DC56: =+(DC46+DC52+DC53+DC55)*$D$56 -> -0.1035 | DD56: =+(DD46+DD52+DD53+DD55)*$D$56 -> -0.69 | DE56: =+(DE46+DE52+DE53+DE55)*$D$56 -> -0.69 | DF56: -0.69 | DG56: -0.69 | DH56: -0.69 | DI56: -0.69 | DJ56: =+(DJ46+DJ52+DJ53+DJ55)*$D$56 -> -0.1035 | DK56: =+(DK46+DK52+DK53+DK55)*$D$56 -> -0.69 | DL56: =+(DL46+DL52+DL53+DL55)*$D$56 -> -0.69 | DM56: -0.69 | DN56: =+(DN46+DN52+DN53+DN55)*$D$56 -> -0.69 | DO56: -0.69 | DP56: -0.69 | DQ56: =+(DQ46+DQ52+DQ53+DQ55)*$D$56 -> -0.1035 | DR56: =+(DR46+DR52+DR53+DR55)*$D$56 -> -0.69 | DS56: -0.69 | DT56: =+(DT46+DT52+DT53+DT55)*$D$56 -> -0.69 | DU56: -0.69 | DV56: -0.69 | DW56: -0.69 | DX56: =+(DX46+DX52+DX53+DX55)*$D$56 -> -1.2535
B57: Cash-Flows | O57: =+SUM(O46:O56) -> -2508.89 | P57: =+SUM(P46:P56) -> -3.69 | Q57: =+SUM(Q46:Q56) -> -3.69 | R57: =+SUM(R46:R56) -> -3.69 | BC57: Cash-Flows | BF57: =+SUM(BF46:BF56) -> -2505.2 | BG57: =+SUM(BG46:BG56) -> -3.69 | BH57: -3.69 | BI57: -3.69 | BJ57: -3.69 | BK57: -3.69 | BL57: =+SUM(BL46:BL56) -> -3.69 | BM57: =+SUM(BM46:BM56) -> 44.4465 | BN57: =+SUM(BN46:BN56) -> -3.69 | BO57: =+SUM(BO46:BO56) -> -3.69 | BP57: -3.69 | BQ57: -3.69 | BR57: -3.69 | BS57: -3.69 | BT57: =+SUM(BT46:BT56) -> 44.4465 | BU57: -3.69 | BV57: -3.69 | BW57: -3.69 | BX57: =+SUM(BX46:BX56) -> -3.69 | BY57: -3.69 | BZ57: -3.69 | CA57: =+SUM(CA46:CA56) -> 44.4465 | CB57: =+SUM(CB46:CB56) -> -3.69 | CC57: -3.69 | CD57: -3.69 | CE57: -3.69 | CF57: -3.69 | CG57: -3.69 | CH57: 44.4465 | CI57: =+SUM(CI46:CI56) -> -3.69 | CJ57: =+SUM(CH46:CH56) -> 44.4465 | CK57: -3.69 | CL57: -3.69 | CM57: -3.69 | CN57: -3.69 | CO57: 44.4465 | CP57: =+SUM(CP46:CP56) -> -3.69 | CQ57: =+SUM(CQ46:CQ56) -> -3.69 | CR57: -3.69 | CS57: -3.69 | CT57: -3.69 | CU57: -3.69 | CV57: =+SUM(CV46:CV56) -> 44.4465 | CW57: =+SUM(CW46:CW56) -> -3.69 | CX57: -3.69 | CY57: -3.69 | CZ57: -3.69 | DA57: -3.69 | DB57: -3.69 | DC57: 44.4465 | DD57: =+SUM(DD46:DD56) -> -3.69 | DE57: -3.69 | DF57: -3.69 | DG57: -3.69 | DH57: -3.69 | DI57: -3.69 | DJ57: =+SUM(DJ46:DJ56) -> 44.4465 | DK57: =+SUM(DK46:DK56) -> -3.69 | DL57: -3.69 | DM57: -3.69 | DN57: =+SUM(DN46:DN56) -> -3.69 | DO57: -3.69 | DP57: -3.69 | DQ57: 44.4465 | DR57: =+SUM(DR46:DR56) -> -3.69 | DS57: -3.69 | DT57: =+SUM(DT46:DT56) -> -3.69 | DU57: -3.69 | DV57: -3.69 | DW57: -3.69 | DX57: =+SUM(DX47:DX56) -> 2538.2965
E59: 2025
B60: Preçário | E60: =BJ45 -> 2025-01-31 | F60: =BK45 -> 2025-02-28 | G60: 2025-03-31 | H60: 2025-04-16 | I60: 2025-04-30 | J60: 2025-05-30 | K60: 2025-06-30 | L60: 2025-07-31 | M60: 2025-08-29 | N60: 2025-09-30 | O60: 2025-10-16 | P60: 2025-10-31 | Q60: 2025-11-28 | R60: 2025-12-31
B61: Comissão Serviço Bolsa ** | D61: =+IF($F$15=1,0,IF($F$19=1,3,3)) -> 3 | E61: =-$D$46 -> -3 | F61: =-$D$46 -> -3 | G61: =-$D$46 -> -3 | I61: =-$D$46 -> -3 | J61: =-$D$46 -> -3 | K61: -3 | L61: -3 | M61: -3 | N61: -3 | P61: =-$D$46 -> -3 | Q61: =-$D$46 -> -3 | R61: =-$D$46 -> -3
B62: Investimento | D62: -
B63: Comissão de Subscrição** | D63: =D25 -> 5
B64: Imposto do Selo | D64: 0.04
B65: Pagamento de Juros Bruto | D65: - | H65: =+$F$7*$F$9*((6*30)/360) -> 62.5 | O65: =+$F$7*$F$9*((6*30)/360) -> 62.5
B66: IRS | D66: =+IF($F$21=1, 28%, IF($F$21=2, 28%, IF($F$21=3,19.6%,17.5%))) -> 0.28 | H66: =+-H65*$D$51 -> -17.5 | O66: =+-O65*$D$51 -> -17.5
B67: Comissão Rendimentos ** | D67: 0.01 | H67: =-((H65+H66)*$D$52) -> -0.45 | O67: =-((O65+O66)*$D$52) -> -0.45
B68: Comissão Reembolso ** | D68: 0.002
B69: Portes | D69: =+IF($F$17=1,0,0.4) -> 0 | H69: =+IF($F$17=1,0,IF(AND($F$15=2,OR($F$21=2,$F$21=4)),-$D$54,IF(H$46="",-$D$54,0))) -> 0 | O69: =+IF($F$17=1,0,IF(AND($F$15=2,OR($F$21=2,$F$21=4)),-$D$54,IF(O$46="",-$D$54,0))) -> 0
B70: Despesas Expediente** | D70: =+IF($F$17=1,0,1.05) -> 0 | H70: =+IF($F$17=1,0,IF(AND($F$15=2,OR($F$21=2,$F$21=4)),-$D$55,IF(H$46="",-$D$55,0))) -> 0 | O70: =+IF($F$17=1,0,IF(AND($F$15=2,OR($F$21=2,$F$21=4)),-$D$55,IF(O$46="",-$D$55,0))) -> 0
B71: IVA | D71: =+IF($F$21=1, 23%, IF($F$21=2, 22%, IF($F$21=3,16%,17.5%))) -> 0.23 | E71: =+(E61+E67+E68+E70)*$D$56 -> -0.69 | F71: -0.69 | G71: -0.69 | H71: =+(H61+H67+H68+H70)*$D$56 -> -0.1035 | I71: =+(I61+I67+I68+I70)*$D$56 -> -0.69 | J71: -0.69 | K71: =+(K61+K67+K68+K70)*$D$56 -> -0.69 | L71: -0.69 | M71: -0.69 | N71: -0.69 | O71: -0.1035 | P71: -0.69 | Q71: =+(Q61+Q67+Q68+Q70)*$D$56 -> -0.69 | R71: =+(R61+R67+R68+R70)*$D$56 -> -0.69
B72: Cash-Flows | E72: =+SUM(E61:E71) -> -3.69 | F72: -3.69 | G72: -3.69 | H72: =+SUM(H61:H71) -> 44.4465 | I72: =+SUM(I61:I71) -> -3.69 | J72: =+SUM(J61:J71) -> -3.69 | K72: =+SUM(K61:K71) -> -3.69 | L72: =+SUM(L61:L71) -> -3.69 | M72: =+SUM(M61:M71) -> -3.69 | N72: =+SUM(N61:N71) -> -3.69 | O72: =+SUM(O61:O71) -> 44.4465 | P72: =+SUM(P61:P71) -> -3.69 | Q72: =+SUM(Q61:Q71) -> -3.69 | R72: =+SUM(R61:R71) -> -3.69
E74: 2026
B75: Preçário | E75: =BX45 -> 2026-01-30 | F75: =BY45 -> 2026-02-27 | G75: 2026-03-31 | H75: 2026-04-16 | I75: 2026-04-30 | J75: 2026-05-29 | K75: 2026-06-30 | L75: 2026-07-31 | M75: 2026-08-31 | N75: 2026-09-30 | O75: 2026-10-16 | P75: 2026-10-30 | Q75: 2025-11-30 | R75: 2025-12-31
B76: Comissão Serviço Bolsa ** | D76: =+IF($F$15=1,0,IF($F$19=1,3,3)) -> 3 | E76: =-$D$46 -> -3 | F76: =-$D$46 -> -3 | G76: =-$D$46 -> -3 | I76: =-$D$46 -> -3 | J76: =-$D$46 -> -3 | K76: -3 | L76: -3 | M76: -3 | N76: -3 | P76: =-$D$46 -> -3 | Q76: =-$D$46 -> -3 | R76: =-$D$46 -> -3
B77: Investimento | D77: -
B78: Comissão de Subscrição** | D78: =D25 -> 5
B79: Imposto do Selo | D79: 0.04
B80: Pagamento de Juros Bruto | D80: - | H80: =+$F$7*$F$9*((6*30)/360) -> 62.5 | O80: =+$F$7*$F$9*((6*30)/360) -> 62.5
B81: IRS | D81: =+IF($F$21=1, 28%, IF($F$21=2, 28%, IF($F$21=3,19.6%,17.5%))) -> 0.28 | H81: =+-H80*$D$51 -> -17.5 | O81: =+-O80*$D$51 -> -17.5
B82: Comissão Rendimentos ** | D82: 0.01 | H82: =-((H80+H81)*$D$52) -> -0.45 | O82: =-((O80+O81)*$D$52) -> -0.45
B83: Comissão Reembolso ** | D83: 0.002
B84: Portes | D84: =+IF($F$17=1,0,0.4) -> 0 | H84: =+IF($F$17=1,0,IF(AND($F$15=2,OR($F$21=2,$F$21=4)),-$D$54,IF(H$46="",-$D$54,0))) -> 0 | O84: =+IF($F$17=1,0,IF(AND($F$15=2,OR($F$21=2,$F$21=4)),-$D$54,IF(O$46="",-$D$54,0))) -> 0
B85: Despesas Expediente** | D85: =+IF($F$17=1,0,1.05) -> 0 | H85: =+IF($F$17=1,0,IF(AND($F$15=2,OR($F$21=2,$F$21=4)),-$D$55,IF(H$46="",-$D$55,0))) -> 0 | O85: =+IF($F$17=1,0,IF(AND($F$15=2,OR($F$21=2,$F$21=4)),-$D$55,IF(O$46="",-$D$55,0))) -> 0
B86: IVA | D86: =+IF($F$21=1, 23%, IF($F$21=2, 22%, IF($F$21=3,16%,17.5%))) -> 0.23 | E86: =+(E76+E82+E83+E85)*$D$56 -> -0.69 | F86: -0.69 | G86: -0.69 | H86: =+(H76+H82+H83+H85)*$D$56 -> -0.1035 | I86: =+(I76+I82+I83+I85)*$D$56 -> -0.69 | J86: -0.69 | K86: =+(K76+K82+K83+K85)*$D$56 -> -0.69 | L86: -0.69 | M86: -0.69 | N86: -0.69 | O86: =+(O76+O82+O83+O85)*$D$56 -> -0.1035 | P86: =+(P76+P82+P83+P85)*$D$56 -> -0.69 | Q86: =+(Q76+Q82+Q83+Q85)*$D$56 -> -0.69 | R86: =+(R76+R82+R83+R85)*$D$56 -> -0.69
B87: Cash-Flows | E87: =+SUM(E76:E86) -> -3.69 | F87: -3.69 | G87: -3.69 | H87: 44.4465 | I87: =+SUM(I76:I86) -> -3.69 | J87: =+SUM(J76:J86) -> -3.69 | K87: =+SUM(K76:K86) -> -3.69 | L87: -3.69 | M87: -3.69 | N87: -3.69 | O87: 44.4465 | P87: =+SUM(P76:P86) -> -3.69 | Q87: =+SUM(Q76:Q86) -> -3.69 | R87: =+SUM(R76:R86) -> -3.69
E89: 2027
B90: Preçário | E90: =CL45 -> 2027-01-29 | F90: =CM45 -> 2027-02-26 | G90: 2027-03-31 | H90: 2027-04-16 | I90: 2027-04-30 | J90: 2027-05-31 | K90: 2027-06-30 | L90: 2027-07-30 | M90: 2027-08-31 | N90: 2027-09-30 | O90: 2027-10-18 | P90: 2027-10-29 | Q90: 2027-11-30 | R90: 2027-12-30
B91: Comissão Serviço Bolsa ** | D91: =+IF($F$15=1,0,IF($F$19=1,3,3)) -> 3 | E91: =-$D$46 -> -3 | F91: =-$D$46 -> -3 | G91: =-$D$46 -> -3 | I91: =-$D$46 -> -3 | J91: =-$D$46 -> -3 | K91: -3 | L91: -3 | M91: -3 | N91: -3 | P91: =-$D$46 -> -3 | Q91: =-$D$46 -> -3 | R91: =-$D$46 -> -3
B92: Investimento | D92: -
B93: Comissão de Subscrição** | D93: =D25 -> 5
B94: Imposto do Selo | D94: 0.04
B95: Pagamento de Juros Bruto | D95: - | H95: =+$F$7*$F$9*((6*30)/360) -> 62.5 | O95: =+$F$7*$F$9*((6*30)/360) -> 62.5
B96: IRS | D96: =+IF($F$21=1, 28%, IF($F$21=2, 28%, IF($F$21=3,19.6%,17.5%))) -> 0.28 | H96: =+-H95*$D$51 -> -17.5 | O96: =+-O95*$D$51 -> -17.5
B97: Comissão Rendimentos ** | D97: 0.01 | H97: =-((H95+H96)*$D$52) -> -0.45 | O97: =-((O95+O96)*$D$52) -> -0.45
B98: Comissão Reembolso ** | D98: 0.002
B99: Portes | D99: =+IF($F$17=1,0,0.4) -> 0 | H99: =+IF($F$17=1,0,IF(AND($F$15=2,OR($F$21=2,$F$21=4)),-$D$54,IF(H$46="",-$D$54,0))) -> 0 | O99: =+IF($F$17=1,0,IF(AND($F$15=2,OR($F$21=2,$F$21=4)),-$D$54,IF(O$46="",-$D$54,0))) -> 0
B100: Despesas Expediente** | D100: =+IF($F$17=1,0,1.05) -> 0 | H100: =+IF($F$17=1,0,IF(AND($F$15=2,OR($F$21=2,$F$21=4)),-$D$55,IF(H$46="",-$D$55,0))) -> 0 | O100: =+IF($F$17=1,0,IF(AND($F$15=2,OR($F$21=2,$F$21=4)),-$D$55,IF(O$46="",-$D$55,0))) -> 0
B101: IVA | D101: =+IF($F$21=1, 23%, IF($F$21=2, 22%, IF($F$21=3,16%,17.5%))) -> 0.23 | E101: =+(E91+E97+E98+E100)*$D$56 -> -0.69 | F101: -0.69 | G101: -0.69 | H101: =+(H91+H97+H98+H100)*$D$56 -> -0.1035 | I101: =+(I91+I97+I98+I100)*$D$56 -> -0.69 | J101: -0.69 | K101: -0.69 | L101: -0.69 | M101: -0.69 | N101: -0.69 | O101: =+(O91+O97+O98+O100)*$D$56 -> -0.1035 | P101: -0.69 | Q101: -0.69 | R101: -0.69
B102: Cash-Flows | E102: =+SUM(E91:E101) -> -3.69 | F102: -3.69 | G102: -3.69 | H102: 44.4465 | I102: =+SUM(I91:I101) -> -3.69 | J102: -3.69 | K102: -3.69 | L102: -3.69 | M102: -3.69 | N102: -3.69 | O102: 44.4465 | P102: =+SUM(P91:P101) -> -3.69 | Q102: =+SUM(Q91:Q101) -> -3.69 | R102: =+SUM(R91:R101) -> -3.69
E104: 2028
B105: Preçário | E105: =CZ45 -> 2028-01-31 | F105: =DA45 -> 2028-02-29 | G105: 2028-03-31 | H105: 2028-04-17 | I105: 2028-04-28 | J105: 2028-05-31 | K105: 2028-06-30 | L105: 2028-07-31 | M105: 2028-08-31 | N105: 2028-09-29 | O105: 2028-10-16 | P105: 2028-10-31 | Q105: 2028-11-30 | R105: 2028-12-29
B106: Comissão Serviço Bolsa ** | D106: =+IF($F$15=1,0,IF($F$19=1,3,3)) -> 3 | E106: =-$D$46 -> -3 | F106: =-$D$46 -> -3 | G106: =-$D$46 -> -3 | I106: =-$D$46 -> -3 | J106: =-$D$46 -> -3 | K106: -3 | L106: -3 | M106: -3 | N106: -3 | P106: =-$D$46 -> -3 | Q106: =-$D$46 -> -3 | R106: =-$D$46 -> -3
B107: Investimento | D107: -
B108: Comissão de Subscrição** | D108: =D25 -> 5
B109: Imposto do Selo | D109: 0.04
B110: Pagamento de Juros Bruto | D110: - | H110: =+$F$7*$F$9*((6*30)/360) -> 62.5 | O110: =+$F$7*$F$9*((6*30)/360) -> 62.5
B111: IRS | D111: =+IF($F$21=1, 28%, IF($F$21=2, 28%, IF($F$21=3,19.6%,17.5%))) -> 0.28 | H111: =+-H110*$D$51 -> -17.5 | O111: =+-O110*$D$51 -> -17.5
B112: Comissão Rendimentos ** | D112: 0.01 | H112: =-((H110+H111)*$D$52) -> -0.45 | O112: =-((O110+O111)*$D$52) -> -0.45
B113: Comissão Reembolso ** | D113: 0.002
B114: Portes | D114: =+IF($F$17=1,0,0.4) -> 0 | H114: =+IF($F$17=1,0,IF(AND($F$15=2,OR($F$21=2,$F$21=4)),-$D$54,IF(H$46="",-$D$54,0))) -> 0 | O114: =+IF($F$17=1,0,IF(AND($F$15=2,OR($F$21=2,$F$21=4)),-$D$54,IF(O$46="",-$D$54,0))) -> 0
B115: Despesas Expediente** | D115: =+IF($F$17=1,0,1.05) -> 0 | H115: =+IF($F$17=1,0,IF(AND($F$15=2,OR($F$21=2,$F$21=4)),-$D$55,IF(H$46="",-$D$55,0))) -> 0 | O115: =+IF($F$17=1,0,IF(AND($F$15=2,OR($F$21=2,$F$21=4)),-$D$55,IF(O$46="",-$D$55,0))) -> 0
B116: IVA | D116: =+IF($F$21=1, 23%, IF($F$21=2, 22%, IF($F$21=3,16%,17.5%))) -> 0.23 | E116: =+(E106+E112+E113+E115)*$D$56 -> -0.69 | F116: -0.69 | G116: -0.69 | H116: =+(H106+H112+H113+H115)*$D$56 -> -0.1035 | I116: =+(I106+I112+I113+I115)*$D$56 -> -0.69 | J116: -0.69 | K116: -0.69 | L116: -0.69 | M116: -0.69 | N116: -0.69 | O116: =+(O106+O112+O113+O115)*$D$56 -> -0.1035 | P116: -0.69 | Q116: -0.69 | R116: -0.69
B117: Cash-Flows | E117: =+SUM(E106:E116) -> -3.69 | F117: -3.69 | G117: -3.69 | H117: 44.4465 | I117: =+SUM(I106:I116) -> -3.69 | J117: -3.69 | K117: -3.69 | L117: -3.69 | M117: -3.69 | N117: -3.69 | O117: 44.4465 | P117: =+SUM(P106:P116) -> -3.69 | Q117: =+SUM(Q106:Q116) -> -3.69 | R117: =+SUM(R106:R116) -> -3.69
E119: 2029
B120: Preçário | E120: =DN45 -> 2029-01-31 | F120: =DO45 -> 2029-02-28 | G120: 2029-03-30 | H120: 2029-04-16 | I120: 2029-04-30 | J120: 2029-05-31 | K120: 2029-06-30 | L120: 2029-07-31 | M120: 2029-08-31 | N120: 2029-09-29 | O120: 2029-10-16
B121: Comissão Serviço Bolsa ** | D121: =+IF($F$15=1,0,IF($F$19=1,3,3)) -> 3 | E121: =-$D$46 -> -3 | F121: =-$D$46 -> -3 | G121: =-$D$46 -> -3 | I121: =-$D$46 -> -3 | J121: =-$D$46 -> -3 | K121: =-$D$46 -> -3 | L121: =-$D$46 -> -3 | M121: -3 | N121: -3
B122: Investimento | D122: - | O122: =F7 -> 2500
B123: Comissão de Subscrição** | D123: =D25 -> 5
B124: Imposto do Selo | D124: 0.04
B125: Pagamento de Juros Bruto | D125: - | H125: =+$F$7*$F$9*((6*30)/360) -> 62.5 | O125: =+$F$7*$F$9*((6*30)/360) -> 62.5
B126: IRS | D126: =+IF($F$21=1, 28%, IF($F$21=2, 28%, IF($F$21=3,19.6%,17.5%))) -> 0.28 | H126: =+-H125*$D$51 -> -17.5 | O126: =+-O125*$D$51 -> -17.5
B127: Comissão Rendimentos ** | D127: 0.01 | H127: =-((H125+H126)*$D$52) -> -0.45 | O127: =-((O125+O126)*$D$52) -> -0.45
B128: Comissão Reembolso ** | D128: 0.002 | O128: =-D128*$F$7 -> -5
B129: Portes | D129: =+IF($F$17=1,0,0.4) -> 0 | H129: =+IF($F$17=1,0,IF(AND($F$15=2,OR($F$21=2,$F$21=4)),-$D$54,IF(H$46="",-$D$54,0))) -> 0 | O129: =+IF($F$17=1,0,IF(AND($F$15=2,OR($F$21=2,$F$21=4)),-$D$54,IF(H$46="",-$D$54,0))) -> 0
B130: Despesas Expediente** | D130: =+IF($F$17=1,0,1.05) -> 0 | H130: =+IF($F$17=1,0,IF(AND($F$15=2,OR($F$21=2,$F$21=4)),-$D$55,IF(H$46="",-$D$55,0))) -> 0 | O130: =+IF($F$17=1,0,IF(AND($F$15=2,OR($F$21=2,$F$21=4)),-$D$55,IF(H$46="",-$D$55,0))) -> 0
B131: IVA | D131: =+IF($F$21=1, 23%, IF($F$21=2, 22%, IF($F$21=3,16%,17.5%))) -> 0.23 | E131: =+(E121+E127+E128+E130)*$D$56 -> -0.69 | F131: -0.69 | G131: -0.69 | H131: =+(H121+H127+H128+H130)*$D$56 -> -0.1035 | I131: =+(I121+I127+I128+I130)*$D$56 -> -0.69 | J131: -0.69 | K131: =+(K121+K127+K128+K130)*$D$56 -> -0.69 | L131: -0.69 | M131: -0.69 | N131: -0.69 | O131: =+(O121+O127+O128+O130)*$D$56 -> -1.2535
B132: Cash-Flows | E132: =+SUM(E121:E131) -> -3.69 | F132: =+SUM(F121:F131) -> -3.69 | G132: -3.69 | H132: =+SUM(H121:H131) -> 44.4465 | I132: -3.69 | J132: =+SUM(J121:J131) -> -3.69 | K132: =+SUM(K121:K131) -> -3.69 | L132: -3.69 | M132: -3.69 | N132: -3.69 | O132: 2538.2965
B140: * Acresce IS
B141: ** Acresce IVA
